[Event "Titled Tuesday Blitz January 31 Late 2023"]
[White "Wang, Alexander J"]
[Black "Bouget, Alexandre"]
[WhiteFideId "30955270"]
[BlackFideId "681318"]
[WhiteElo "1815"]
[BlackElo "2267"]
[Result "0-1"]
[Round "04"]
[TimeControl "180+2"]
[Date "2023.01.31"]
[WhiteClock "0:01:09"]
[BlackClock "0:02:26"]

1. e4 {[%clk 0:02:51]}  e6 {[%clk 0:02:59]} 2. d4 {[%clk 0:02:49]}  d5 {[%clk 0:02:59]} 3. e5 {[%clk 0:02:49]}  c5 {[%clk 0:02:58]} 4. c3 {[%clk 0:02:50]}  Nc6 {[%clk 0:02:59]} 5. Nf3 {[%clk 0:02:50]}  Qb6 {[%clk 0:02:55]} 6. Be2 {[%clk 0:02:50]}  Bd7 {[%clk 0:02:53]} 7. O-O {[%clk 0:02:42]}  Nh6 {[%clk 0:02:53]} 8. Bxh6 {[%clk 0:02:18]}  gxh6 {[%clk 0:02:53]} 9. Qd2 {[%clk 0:02:18]}  Bg7 {[%clk 0:02:50]} 10. Na3 {[%clk 0:02:02]}  O-O {[%clk 0:02:50]} 11. Nb5 {[%clk 0:01:49]}  Kh8 {[%clk 0:02:46]} 12. Nd6 {[%clk 0:01:48]}  f6 {[%clk 0:02:46]} 13. dxc5 {[%clk 0:01:32]}  Qxc5 {[%clk 0:02:42]} 14. Nxb7 {[%clk 0:01:32]}  Qe7 {[%clk 0:02:40]} 15. exf6 {[%clk 0:01:31]}  Bxf6 {[%clk 0:02:40]} 16. Qxh6 {[%clk 0:01:26]}  Rab8 {[%clk 0:02:38]} 17. Nc5 {[%clk 0:01:17]}  Qxc5 {[%clk 0:02:37]} 18. Ng5 {[%clk 0:01:14]}  Qe7 {[%clk 0:02:35]} 19. Nf3 {[%clk 0:01:12]}  Rxb2 {[%clk 0:02:31]} 20. Bd3 {[%clk 0:01:10]}  Qg7 {[%clk 0:02:28]} 21. Qc1 {[%clk 0:01:09]}  Bxc3 {[%clk 0:02:26]} 0-1


[Site "https://www.chess.com"]

[Event "Titled Tuesday Blitz January 31 Late 2023"]
[White "Floresvillar Gonzalez, Luis Migu"]
[Black "Ansh M Shah"]
[WhiteFideId "5100542"]
[BlackFideId "25033379"]
[WhiteElo "2043"]
[BlackElo "2171"]
[Result "0-1"]
[Round "04"]
[TimeControl "180+2"]
[Date "2023.01.31"]
[WhiteClock "0:00:41"]
[BlackClock "0:02:11"]

1. d4 {[%clk 0:03:00]}  Nf6 {[%clk 0:02:58]} 2. c3 {[%clk 0:03:00]}  d5 {[%clk 0:02:59]} 3. Bg5 {[%clk 0:03:00]}  e6 {[%clk 0:03:00]} 4. Nd2 {[%clk 0:03:00]}  Be7 {[%clk 0:03:00]} 5. Ngf3 {[%clk 0:03:00]}  O-O {[%clk 0:03:01]} 6. Ne5 {[%clk 0:03:00]}  Nbd7 {[%clk 0:02:58]} 7. f4 {[%clk 0:03:00]}  h6 {[%clk 0:02:57]} 8. Bxf6 {[%clk 0:02:59]}  Bxf6 {[%clk 0:02:51]} 9. e3 {[%clk 0:02:59]}  c6 {[%clk 0:02:40]} 10. Ndf3 {[%clk 0:02:58]}  Bxe5 {[%clk 0:02:38]} 11. Nxe5 {[%clk 0:02:55]}  Nxe5 {[%clk 0:02:39]} 12. dxe5 {[%clk 0:02:53]}  f6 {[%clk 0:02:39]} 13. exf6 {[%clk 0:02:52]}  Qxf6 {[%clk 0:02:40]} 14. Bd3 {[%clk 0:02:50]}  e5 {[%clk 0:02:40]} 15. O-O {[%clk 0:02:49]}  e4 {[%clk 0:02:40]} 16. Be2 {[%clk 0:02:44]}  Be6 {[%clk 0:02:40]} 17. Qd4 {[%clk 0:02:41]}  b6 {[%clk 0:02:38]} 18. Rad1 {[%clk 0:02:38]}  c5 {[%clk 0:02:35]} 19. Qxf6 {[%clk 0:02:38]}  Rxf6 {[%clk 0:02:36]} 20. a3 {[%clk 0:02:33]}  Bf7 {[%clk 0:02:33]} 21. h3 {[%clk 0:02:31]}  Rd8 {[%clk 0:02:33]} 22. Rd2 {[%clk 0:02:24]}  Rfd6 {[%clk 0:02:33]} 23. Rfd1 {[%clk 0:02:23]}  Kf8 {[%clk 0:02:33]} 24. g4 {[%clk 0:02:23]}  Ke7 {[%clk 0:02:33]} 25. Kf2 {[%clk 0:02:21]}  g5 {[%clk 0:02:29]} 26. f5 {[%clk 0:02:20]}  Kf6 {[%clk 0:02:29]} 27. Kg3 {[%clk 0:02:19]}  Ke5 {[%clk 0:02:29]} 28. Bb5 {[%clk 0:02:07]}  d4 {[%clk 0:02:26]} 29. cxd4+ {[%clk 0:02:06]}  cxd4 {[%clk 0:02:26]} 30. exd4+ {[%clk 0:02:01]}  Rxd4 {[%clk 0:02:27]} 31. Rxd4 {[%clk 0:01:59]}  Rxd4 {[%clk 0:02:28]} 32. Rxd4 {[%clk 0:01:53]}  Kxd4 {[%clk 0:02:29]} 33. Kf2 {[%clk 0:01:53]}  e3+ {[%clk 0:02:24]} 34. Ke2 {[%clk 0:01:43]}  Ke4 {[%clk 0:02:24]} 35. Bc6+ {[%clk 0:01:29]}  Kf4 {[%clk 0:02:24]} 36. Kd3 {[%clk 0:01:19]}  Bc4+ {[%clk 0:02:17]} 37. Kc2 {[%clk 0:00:55]}  Kg3 {[%clk 0:02:16]} 38. f6 {[%clk 0:00:54]}  e2 {[%clk 0:02:15]} 39. Kd2 {[%clk 0:00:53]}  Kf2 {[%clk 0:02:15]} 40. Bb5 {[%clk 0:00:41]}  e1=Q+ {[%clk 0:02:11]} 0-1


[Site "https://www.chess.com"]

[Event "Titled Tuesday Blitz January 31 Late 2023"]
[White "Torres Dominguez, David"]
[Black "Llanos, Guillermo"]
[WhiteFideId "2220857"]
[BlackFideId "100358"]
[WhiteElo "1994"]
[BlackElo "2290"]
[Result "1-0"]
[Round "04"]
[TimeControl "180+2"]
[Date "2023.01.31"]
[WhiteClock "0:00:58"]
[BlackClock "0:01:02"]

1. e4 {[%clk 0:02:46]}  d6 {[%clk 0:02:58]} 2. Nc3 {[%clk 0:02:45]}  e5 {[%clk 0:02:54]} 3. f4 {[%clk 0:02:45]}  Nc6 {[%clk 0:02:52]} 4. Nf3 {[%clk 0:02:44]}  exf4 {[%clk 0:02:51]} 5. d4 {[%clk 0:02:36]}  g5 {[%clk 0:02:51]} 6. d5 {[%clk 0:02:33]}  Ne5 {[%clk 0:02:46]} 7. Bb5+ {[%clk 0:02:30]}  c6 {[%clk 0:02:42]} 8. dxc6 {[%clk 0:02:24]}  bxc6 {[%clk 0:02:41]} 9. Nxe5 {[%clk 0:02:20]}  cxb5 {[%clk 0:02:40]} 10. Qd5 {[%clk 0:02:07]}  dxe5 {[%clk 0:02:35]} 11. Qxa8 {[%clk 0:02:05]}  Bd7 {[%clk 0:02:07]} 12. Qxd8+ {[%clk 0:01:55]}  Kxd8 {[%clk 0:02:06]} 13. Nd5 {[%clk 0:01:52]}  Ne7 {[%clk 0:02:01]} 14. Nf6 {[%clk 0:01:51]}  Bc6 {[%clk 0:01:47]} 15. Bd2 {[%clk 0:01:44]}  Bg7 {[%clk 0:01:41]} 16. Nh5 {[%clk 0:01:41]}  Rg8 {[%clk 0:01:41]} 17. O-O-O {[%clk 0:01:36]}  Kc8 {[%clk 0:01:34]} 18. Rhe1 {[%clk 0:01:35]}  Bh8 {[%clk 0:01:30]} 19. Bb4 {[%clk 0:01:31]}  Ng6 {[%clk 0:01:29]} 20. Rd6 {[%clk 0:01:26]}  Bd7 {[%clk 0:01:28]} 21. h3 {[%clk 0:01:25]}  f5 {[%clk 0:01:21]} 22. Red1 {[%clk 0:01:21]}  fxe4 {[%clk 0:01:08]} 23. Rxd7 {[%clk 0:01:20]}  e3 {[%clk 0:01:08]} 24. Rxa7 {[%clk 0:01:11]}  Kb8 {[%clk 0:01:05]} 25. Rdd7 {[%clk 0:01:05]}  e4 {[%clk 0:01:04]} 26. Bd6+ {[%clk 0:01:00]}  Kc8 {[%clk 0:01:02]} 27. Rdc7+ {[%clk 0:00:58]} 1-0


[Site "https://www.chess.com"]

[Event "Titled Tuesday Blitz January 31 Late 2023"]
[White "Vaglio Mattey, Emanuel"]
[Black "Araujo, Everson De Moura"]
[WhiteFideId "6504167"]
[BlackFideId "22737197"]
[WhiteElo "2155"]
[BlackElo "1944"]
[Result "1-0"]
[Round "04"]
[TimeControl "180+2"]
[Date "2023.01.31"]
[WhiteClock "0:02:50"]
[BlackClock "0:02:19"]

1. d4 {[%clk 0:03:00]}  d5 {[%clk 0:02:59]} 2. Nf3 {[%clk 0:03:01]}  Nf6 {[%clk 0:03:00]} 3. Bg5 {[%clk 0:03:02]}  Ne4 {[%clk 0:02:54]} 4. Bh4 {[%clk 0:03:01]}  h6 {[%clk 0:02:44]} 5. e3 {[%clk 0:02:59]}  g5 {[%clk 0:02:43]} 6. Bg3 {[%clk 0:03:00]}  Nxg3 {[%clk 0:02:42]} 7. hxg3 {[%clk 0:03:01]}  Bg7 {[%clk 0:02:43]} 8. Nbd2 {[%clk 0:03:01]}  Bf5 {[%clk 0:02:39]} 9. c4 {[%clk 0:03:00]}  e6 {[%clk 0:02:37]} 10. Qb3 {[%clk 0:03:00]}  Qc8 {[%clk 0:02:33]} 11. cxd5 {[%clk 0:02:58]}  Nd7 {[%clk 0:02:25]} 12. e4 {[%clk 0:02:51]}  Bg4 {[%clk 0:02:21]} 13. Nh2 {[%clk 0:02:50]}  Bh5 {[%clk 0:02:19]} 14. dxe6 {[%clk 0:02:50]} 1-0


[Site "https://www.chess.com"]

[Event "Titled Tuesday Blitz January 31 Late 2023"]
[White "Chabris, Christopher"]
[Black "Mazibuko, Khanya"]
[WhiteFideId "2005263"]
[BlackFideId "14321041"]
[WhiteElo "2053"]
[BlackElo "1913"]
[Result "1-0"]
[Round "04"]
[TimeControl "180+2"]
[Date "2023.01.31"]
[WhiteClock "0:01:19"]
[BlackClock "0:02:22"]

1. e4 {[%clk 0:02:55]}  c5 {[%clk 0:02:57]} 2. Nf3 {[%clk 0:02:55]}  e6 {[%clk 0:02:57]} 3. d4 {[%clk 0:02:55]}  cxd4 {[%clk 0:02:58]} 4. Nxd4 {[%clk 0:02:55]}  a6 {[%clk 0:02:58]} 5. c4 {[%clk 0:02:55]}  Nf6 {[%clk 0:02:58]} 6. Nc3 {[%clk 0:02:55]}  Bb4 {[%clk 0:02:58]} 7. Be2 {[%clk 0:02:54]}  Nxe4 {[%clk 0:02:57]} 8. Qd3 {[%clk 0:02:50]}  Nc5 {[%clk 0:02:54]} 9. Qg3 {[%clk 0:02:45]}  Qf6 {[%clk 0:02:53]} 10. Be3 {[%clk 0:02:25]}  Nc6 {[%clk 0:02:53]} 11. a3 {[%clk 0:02:13]}  Nxd4 {[%clk 0:02:48]} 12. axb4 {[%clk 0:02:05]}  Nc2+ {[%clk 0:02:48]} 13. Kd1 {[%clk 0:02:00]}  Nxa1 {[%clk 0:02:41]} 14. Bxc5 {[%clk 0:01:54]}  Nb3 {[%clk 0:02:38]} 15. Bd6 {[%clk 0:01:44]}  Nd4 {[%clk 0:02:31]} 16. Bd3 {[%clk 0:01:32]}  Nf5 {[%clk 0:02:26]} 17. Bxf5 {[%clk 0:01:32]}  Qxf5 {[%clk 0:02:25]} 18. Qxg7 {[%clk 0:01:21]}  Qg4+ {[%clk 0:02:22]} 19. Qxg4 {[%clk 0:01:19]} 1-0


[Site "https://www.chess.com"]

[Event "Titled Tuesday Blitz January 31 Late 2023"]
[White "Zhou, Qiyu"]
[Black "Harish, Neeraj"]
[WhiteFideId "505161"]
[BlackFideId "30958130"]
[WhiteElo "2201"]
[BlackElo "2232"]
[Result "0-1"]
[Round "04"]
[TimeControl "180+2"]
[Date "2023.01.31"]
[WhiteClock "0:00:15"]
[BlackClock "0:00:15"]

1. e4 {[%clk 0:03:00]}  c5 {[%clk 0:02:59]} 2. Nf3 {[%clk 0:03:00]}  Nc6 {[%clk 0:03:00]} 3. d4 {[%clk 0:03:00]}  cxd4 {[%clk 0:03:01]} 4. Nxd4 {[%clk 0:03:01]}  Nf6 {[%clk 0:03:01]} 5. Nc3 {[%clk 0:03:01]}  e5 {[%clk 0:03:01]} 6. Ndb5 {[%clk 0:03:01]}  d6 {[%clk 0:03:02]} 7. Bg5 {[%clk 0:03:01]}  a6 {[%clk 0:03:02]} 8. Na3 {[%clk 0:03:02]}  b5 {[%clk 0:03:03]} 9. Nd5 {[%clk 0:03:02]}  Be7 {[%clk 0:03:02]} 10. Bxf6 {[%clk 0:02:59]}  Bxf6 {[%clk 0:03:03]} 11. c3 {[%clk 0:02:59]}  O-O {[%clk 0:03:01]} 12. h4 {[%clk 0:02:55]}  g6 {[%clk 0:02:56]} 13. h5 {[%clk 0:02:52]}  Bg5 {[%clk 0:02:55]} 14. Nc2 {[%clk 0:02:49]}  Rb8 {[%clk 0:02:54]} 15. Nce3 {[%clk 0:02:47]}  Ne7 {[%clk 0:02:43]} 16. Bd3 {[%clk 0:02:33]}  Nxd5 {[%clk 0:02:41]} 17. Nxd5 {[%clk 0:02:34]}  Bb7 {[%clk 0:02:41]} 18. Qg4 {[%clk 0:02:23]}  Bxd5 {[%clk 0:02:35]} 19. exd5 {[%clk 0:02:22]}  f5 {[%clk 0:02:05]} 20. Qh3 {[%clk 0:02:20]}  e4 {[%clk 0:01:59]} 21. hxg6 {[%clk 0:02:08]}  h6 {[%clk 0:01:58]} 22. Be2 {[%clk 0:02:01]}  Qf6 {[%clk 0:01:37]} 23. Qh5 {[%clk 0:01:47]}  b4 {[%clk 0:01:31]} 24. O-O {[%clk 0:01:38]}  bxc3 {[%clk 0:01:22]} 25. bxc3 {[%clk 0:01:39]}  Kg7 {[%clk 0:00:53]} 26. Bxa6 {[%clk 0:01:30]}  Qxg6 {[%clk 0:00:53]} 27. Qxg6+ {[%clk 0:01:28]}  Kxg6 {[%clk 0:00:54]} 28. c4 {[%clk 0:01:29]}  f4 {[%clk 0:00:35]} 29. Bb5 {[%clk 0:01:26]}  e3 {[%clk 0:00:31]} 30. a4 {[%clk 0:01:14]}  Bf6 {[%clk 0:00:18]} 31. Ra2 {[%clk 0:01:02]}  Bd4 {[%clk 0:00:18]} 32. fxe3 {[%clk 0:00:53]}  fxe3 {[%clk 0:00:17]} 33. Rxf8 {[%clk 0:00:50]}  Rxf8 {[%clk 0:00:18]} 34. Re2 {[%clk 0:00:50]}  Bc5 {[%clk 0:00:17]} 35. a5 {[%clk 0:00:48]}  Kf5 {[%clk 0:00:17]} 36. Kf1 {[%clk 0:00:14]}  Ke4+ {[%clk 0:00:17]} 37. Ke1 {[%clk 0:00:14]}  Kd3 {[%clk 0:00:16]} 38. Kd1 {[%clk 0:00:14]}  Rf1+ {[%clk 0:00:16]} 39. Re1 {[%clk 0:00:15]}  e2+ {[%clk 0:00:15]} 0-1


[Site "https://www.chess.com"]

[Event "Titled Tuesday Blitz January 31 Late 2023"]
[White "Zierk, Steven"]
[Black "Andreikin, Dmitry"]
[WhiteFideId "2034255"]
[BlackFideId "4158814"]
[WhiteElo "2488"]
[BlackElo "2729"]
[Result "1/2-1/2"]
[Round "05"]
[TimeControl "180+2"]
[Date "2023.01.31"]
[WhiteClock "0:00:01"]
[BlackClock "0:00:04"]

1. e4 {[%clk 0:03:00]}  c5 {[%clk 0:03:00]} 2. Nf3 {[%clk 0:03:00]}  e6 {[%clk 0:02:59]} 3. d4 {[%clk 0:03:00]}  cxd4 {[%clk 0:03:00]} 4. Nxd4 {[%clk 0:03:00]}  a6 {[%clk 0:03:01]} 5. c4 {[%clk 0:03:00]}  Nf6 {[%clk 0:03:00]} 6. Nc3 {[%clk 0:03:01]}  Bb4 {[%clk 0:03:00]} 7. Qd3 {[%clk 0:03:00]}  O-O {[%clk 0:03:00]} 8. e5 {[%clk 0:02:57]}  Ne8 {[%clk 0:02:59]} 9. a3 {[%clk 0:02:57]}  Be7 {[%clk 0:02:58]} 10. Be2 {[%clk 0:02:50]}  d6 {[%clk 0:02:51]} 11. Nf3 {[%clk 0:02:45]}  Nc6 {[%clk 0:02:44]} 12. Bf4 {[%clk 0:02:40]}  dxe5 {[%clk 0:02:32]} 13. Nxe5 {[%clk 0:02:35]}  Qxd3 {[%clk 0:02:19]} 14. Bxd3 {[%clk 0:02:33]}  Bd6 {[%clk 0:02:13]} 15. Nxc6 {[%clk 0:02:33]}  Bxf4 {[%clk 0:02:13]} 16. Ne7+ {[%clk 0:02:33]}  Kh8 {[%clk 0:02:14]} 17. Nxc8 {[%clk 0:02:27]}  Rxc8 {[%clk 0:02:15]} 18. g3 {[%clk 0:02:26]}  Be5 {[%clk 0:02:14]} 19. Rc1 {[%clk 0:02:21]}  Nd6 {[%clk 0:02:14]} 20. f4 {[%clk 0:02:21]}  Bf6 {[%clk 0:02:11]} 21. Nd1 {[%clk 0:02:16]}  Rfd8 {[%clk 0:02:07]} 22. Ke2 {[%clk 0:02:14]}  b5 {[%clk 0:02:03]} 23. c5 {[%clk 0:02:13]}  Nc4 {[%clk 0:02:04]} 24. Bxc4 {[%clk 0:02:06]}  Rxc5 {[%clk 0:02:04]} 25. Ne3 {[%clk 0:02:05]}  bxc4 {[%clk 0:01:58]} 26. Rxc4 {[%clk 0:02:06]}  Ra5 {[%clk 0:01:50]} 27. Rd1 {[%clk 0:02:03]}  Rb8 {[%clk 0:01:46]} 28. Rc2 {[%clk 0:01:53]}  h6 {[%clk 0:01:44]} 29. Nc4 {[%clk 0:01:51]}  Ra4 {[%clk 0:01:17]} 30. b4 {[%clk 0:01:42]}  a5 {[%clk 0:01:16]} 31. bxa5 {[%clk 0:01:24]}  Rc8 {[%clk 0:01:16]} 32. Kd3 {[%clk 0:01:16]}  Kh7 {[%clk 0:01:10]} 33. Rb1 {[%clk 0:01:14]}  Be7 {[%clk 0:01:03]} 34. Rb7 {[%clk 0:01:12]}  Bxa3 {[%clk 0:00:50]} 35. Rxf7 {[%clk 0:01:08]}  Bb4 {[%clk 0:00:49]} 36. Ra7 {[%clk 0:00:43]}  Rd8+ {[%clk 0:00:49]} 37. Ke2 {[%clk 0:00:40]}  Rc8 {[%clk 0:00:49]} 38. Ne3 {[%clk 0:00:35]}  Rxc2+ {[%clk 0:00:42]} 39. Nxc2 {[%clk 0:00:36]}  Rxa5 {[%clk 0:00:26]} 40. Rxa5 {[%clk 0:00:36]}  Bxa5 {[%clk 0:00:26]} 41. Nd4 {[%clk 0:00:36]}  g5 {[%clk 0:00:26]} 42. Nxe6 {[%clk 0:00:34]}  gxf4 {[%clk 0:00:25]} 43. gxf4 {[%clk 0:00:34]}  Kg6 {[%clk 0:00:23]} 44. Kf3 {[%clk 0:00:35]}  Kf6 {[%clk 0:00:23]} 45. Nc5 {[%clk 0:00:34]}  Bc7 {[%clk 0:00:23]} 46. Ne4+ {[%clk 0:00:30]}  Kg6 {[%clk 0:00:23]} 47. Ng3 {[%clk 0:00:28]}  h5 {[%clk 0:00:22]} 48. Ke4 {[%clk 0:00:28]}  Bb8 {[%clk 0:00:23]} 49. h3 {[%clk 0:00:27]}  Bc7 {[%clk 0:00:22]} 50. Nf1 {[%clk 0:00:25]}  Bb6 {[%clk 0:00:20]} 51. Nd2 {[%clk 0:00:21]}  Ba7 {[%clk 0:00:19]} 52. Nc4 {[%clk 0:00:18]}  Kf6 {[%clk 0:00:19]} 53. Nd6 {[%clk 0:00:15]}  Bb8 {[%clk 0:00:18]} 54. Nf5 {[%clk 0:00:15]}  Bc7 {[%clk 0:00:18]} 55. Ne3 {[%clk 0:00:13]}  Bb8 {[%clk 0:00:18]} 56. Nd5+ {[%clk 0:00:14]}  Kg6 {[%clk 0:00:18]} 57. Kf3 {[%clk 0:00:10]}  Kf5 {[%clk 0:00:16]} 58. Ne3+ {[%clk 0:00:10]}  Kf6 {[%clk 0:00:15]} 59. Ke4 {[%clk 0:00:10]}  Kg6 {[%clk 0:00:14]} 60. Nd5 {[%clk 0:00:08]}  Bd6 {[%clk 0:00:14]} 61. h4 {[%clk 0:00:07]}  Bc5 {[%clk 0:00:11]} 62. f5+ {[%clk 0:00:06]}  Kf7 {[%clk 0:00:11]} 63. Kf3 {[%clk 0:00:06]}  Bd6 {[%clk 0:00:10]} 64. Nf4 {[%clk 0:00:05]}  Kf6 {[%clk 0:00:09]} 65. Ke4 {[%clk 0:00:05]}  Kg7 {[%clk 0:00:05]} 66. Nxh5+ {[%clk 0:00:05]}  Kh6 {[%clk 0:00:06]} 67. Nf4 {[%clk 0:00:05]}  Be7 {[%clk 0:00:07]} 68. Ng6 {[%clk 0:00:04]}  Bf6 {[%clk 0:00:06]} 69. Kd5 {[%clk 0:00:05]}  Kh5 {[%clk 0:00:04]} 70. Ke6 {[%clk 0:00:05]}  Bb2 {[%clk 0:00:04]} 71. Kf7 {[%clk 0:00:03]}  Kg4 {[%clk 0:00:04]} 72. Ke6 {[%clk 0:00:03]}  Kh5 {[%clk 0:00:04]} 73. Ne5 {[%clk 0:00:03]}  Kxh4 {[%clk 0:00:03]} 74. f6 {[%clk 0:00:04]}  Kg5 {[%clk 0:00:03]} 75. f7 {[%clk 0:00:01]}  Ba3 {[%clk 0:00:03]} 76. Kd7 {[%clk 0:00:02]}  Kf6 {[%clk 0:00:03]} 77. Nc4 {[%clk 0:00:01]}  Kxf7 {[%clk 0:00:04]} 1/2-1/2


[Site "https://www.chess.com"]

[Event "Titled Tuesday Blitz January 31 Late 2023"]
[White "Mosadeghpour, Masoud"]
[Black "Deac, Bogdan-Daniel"]
[WhiteFideId "12519278"]
[BlackFideId "1226380"]
[WhiteElo "2472"]
[BlackElo "2700"]
[Result "1-0"]
[Round "05"]
[TimeControl "180+2"]
[Date "2023.01.31"]
[WhiteClock "0:01:11"]
[BlackClock "0:00:03"]

1. e4 {[%clk 0:03:00]}  e5 {[%clk 0:03:00]} 2. Nf3 {[%clk 0:03:00]}  Nc6 {[%clk 0:03:00]} 3. Bb5 {[%clk 0:02:58]}  a6 {[%clk 0:03:01]} 4. Ba4 {[%clk 0:02:58]}  Bc5 {[%clk 0:03:01]} 5. O-O {[%clk 0:02:57]}  Nge7 {[%clk 0:03:02]} 6. Nxe5 {[%clk 0:02:55]}  Nxe5 {[%clk 0:03:01]} 7. d4 {[%clk 0:02:55]}  b5 {[%clk 0:03:01]} 8. Bb3 {[%clk 0:02:55]}  Bxd4 {[%clk 0:03:01]} 9. Qxd4 {[%clk 0:02:56]}  d6 {[%clk 0:03:02]} 10. f4 {[%clk 0:02:54]}  c5 {[%clk 0:03:02]} 11. Qd1 {[%clk 0:02:51]}  N5c6 {[%clk 0:02:41]} 12. c3 {[%clk 0:02:47]}  O-O {[%clk 0:02:07]} 13. Be3 {[%clk 0:02:40]}  c4 {[%clk 0:02:01]} 14. Bc2 {[%clk 0:02:40]}  d5 {[%clk 0:02:01]} 15. Nd2 {[%clk 0:02:37]}  d4 {[%clk 0:01:58]} 16. cxd4 {[%clk 0:02:36]}  Nxd4 {[%clk 0:01:59]} 17. f5 {[%clk 0:02:30]}  Nec6 {[%clk 0:01:49]} 18. f6 {[%clk 0:02:27]}  gxf6 {[%clk 0:01:25]} 19. e5 {[%clk 0:02:10]}  f5 {[%clk 0:01:13]} 20. Nf3 {[%clk 0:01:59]}  Nxc2 {[%clk 0:01:08]} 21. Qxc2 {[%clk 0:02:00]}  Ne7 {[%clk 0:00:20]} 22. Bg5 {[%clk 0:01:55]}  Qb6+ {[%clk 0:00:19]} 23. Kh1 {[%clk 0:01:54]}  Nd5 {[%clk 0:00:17]} 24. Rad1 {[%clk 0:01:52]}  Be6 {[%clk 0:00:07]} 25. Nd4 {[%clk 0:01:51]}  Kh8 {[%clk 0:00:05]} 26. Nxf5 {[%clk 0:01:49]}  f6 {[%clk 0:00:04]} 27. exf6 {[%clk 0:01:46]}  Nxf6 {[%clk 0:00:05]} 28. Qe2 {[%clk 0:01:34]}  Rae8 {[%clk 0:00:03]} 29. Rd6 {[%clk 0:01:30]}  Bxf5 {[%clk 0:00:03]} 30. Bxf6+ {[%clk 0:01:30]}  Kg8 {[%clk 0:00:03]} 31. Qd2 {[%clk 0:01:24]}  Qc7 {[%clk 0:00:02]} 32. Rxf5 {[%clk 0:01:21]}  Qxd6 {[%clk 0:00:02]} 33. Qg5+ {[%clk 0:01:17]}  Kf7 {[%clk 0:00:03]} 34. Be5+ {[%clk 0:01:13]}  Ke6 {[%clk 0:00:03]} 35. Rf6+ {[%clk 0:01:11]} 1-0


[Site "https://www.chess.com"]

[Event "Titled Tuesday Blitz January 31 Late 2023"]
[White "Paravyan, David"]
[Black "Indjic, Aleksandar"]
[WhiteFideId "4194985"]
[BlackFideId "911925"]
[WhiteElo "2601"]
[BlackElo "2618"]
[Result "0-1"]
[Round "05"]
[TimeControl "180+2"]
[Date "2023.01.31"]
[WhiteClock "0:00:02"]
[BlackClock "0:00:13"]

1. Nf3 {[%clk 0:03:00]}  d5 {[%clk 0:02:59]} 2. g3 {[%clk 0:03:00]}  Nc6 {[%clk 0:02:59]} 3. d4 {[%clk 0:02:59]}  Bf5 {[%clk 0:03:00]} 4. Bg2 {[%clk 0:02:59]}  Nb4 {[%clk 0:03:00]} 5. Na3 {[%clk 0:02:59]}  e6 {[%clk 0:03:00]} 6. O-O {[%clk 0:02:59]}  h5 {[%clk 0:03:00]} 7. h4 {[%clk 0:02:58]}  Bd6 {[%clk 0:02:53]} 8. c3 {[%clk 0:02:55]}  Nc6 {[%clk 0:02:52]} 9. Nb5 {[%clk 0:02:56]}  Nf6 {[%clk 0:02:45]} 10. Bg5 {[%clk 0:02:54]}  Be7 {[%clk 0:02:44]} 11. Bf4 {[%clk 0:02:31]}  Rc8 {[%clk 0:02:42]} 12. Qa4 {[%clk 0:02:29]}  Qd7 {[%clk 0:02:34]} 13. c4 {[%clk 0:01:38]}  O-O {[%clk 0:02:13]} 14. Rac1 {[%clk 0:01:07]}  a6 {[%clk 0:01:48]} 15. Nc3 {[%clk 0:01:06]}  Rfd8 {[%clk 0:01:46]} 16. c5 {[%clk 0:01:03]}  Ne4 {[%clk 0:01:42]} 17. e3 {[%clk 0:01:01]}  f6 {[%clk 0:01:35]} 18. Qd1 {[%clk 0:00:54]}  Qe8 {[%clk 0:01:34]} 19. Nd2 {[%clk 0:00:21]}  e5 {[%clk 0:01:27]} 20. dxe5 {[%clk 0:00:12]}  fxe5 {[%clk 0:01:27]} 21. Bg5 {[%clk 0:00:12]}  Nxg5 {[%clk 0:01:27]} 22. hxg5 {[%clk 0:00:12]}  e4 {[%clk 0:01:27]} 23. Qb3 {[%clk 0:00:09]}  Qf7 {[%clk 0:01:18]} 24. Qxb7 {[%clk 0:00:09]}  Ne5 {[%clk 0:01:18]} 25. Qxa6 {[%clk 0:00:09]}  Bxg5 {[%clk 0:01:15]} 26. Qe2 {[%clk 0:00:09]}  Bh6 {[%clk 0:00:48]} 27. Nb5 {[%clk 0:00:09]}  Re8 {[%clk 0:00:45]} 28. Nd4 {[%clk 0:00:09]}  Bg4 {[%clk 0:00:46]} 29. Qa6 {[%clk 0:00:07]}  Ra8 {[%clk 0:00:44]} 30. Qb7 {[%clk 0:00:03]}  Reb8 {[%clk 0:00:43]} 31. c6 {[%clk 0:00:04]}  Rxb7 {[%clk 0:00:42]} 32. cxb7 {[%clk 0:00:05]}  Rb8 {[%clk 0:00:43]} 33. Nxe4 {[%clk 0:00:05]}  dxe4 {[%clk 0:00:39]} 34. Bxe4 {[%clk 0:00:06]}  Nf3+ {[%clk 0:00:39]} 35. Nxf3 {[%clk 0:00:02]}  Bxf3 {[%clk 0:00:39]} 36. Bd3 {[%clk 0:00:02]}  Rxb7 {[%clk 0:00:38]} 37. Rc5 {[%clk 0:00:01]}  c6 {[%clk 0:00:37]} 38. e4 {[%clk 0:00:01]}  Kh8 {[%clk 0:00:35]} 39. Rf5 {[%clk 0:00:02]}  Qxa2 {[%clk 0:00:29]} 40. Rxf3 {[%clk 0:00:02]}  Rf7 {[%clk 0:00:29]} 41. Bb1 {[%clk 0:00:01]}  Qe6 {[%clk 0:00:28]} 42. Rxf7 {[%clk 0:00:01]}  Qxf7 {[%clk 0:00:28]} 43. f4 {[%clk 0:00:02]}  Qb3 {[%clk 0:00:28]} 44. Kg2 {[%clk 0:00:01]}  h4 {[%clk 0:00:27]} 45. gxh4 {[%clk 0:00:01]}  Qxb2+ {[%clk 0:00:27]} 46. Kg3 {[%clk 0:00:02]}  Qb3+ {[%clk 0:00:26]} 47. Kg4 {[%clk 0:00:02]}  Qc4 {[%clk 0:00:26]} 48. Re1 {[%clk 0:00:02]}  Qc3 {[%clk 0:00:22]} 49. Rd1 {[%clk 0:00:02]}  Qf6 {[%clk 0:00:19]} 50. f5 {[%clk 0:00:01]}  Qe7 {[%clk 0:00:18]} 51. Kf3 {[%clk 0:00:01]}  g6 {[%clk 0:00:17]} 52. fxg6 {[%clk 0:00:01]}  Kg7 {[%clk 0:00:18]} 53. h5 {[%clk 0:00:01]}  Qf6+ {[%clk 0:00:18]} 54. Ke2 {[%clk 0:00:02]}  Qb2+ {[%clk 0:00:17]} 55. Kf3 {[%clk 0:00:02]}  Kf6 {[%clk 0:00:16]} 56. Re1 {[%clk 0:00:01]}  Ke5 {[%clk 0:00:16]} 57. Rf1 {[%clk 0:00:01]}  Qc3+ {[%clk 0:00:17]} 58. Kg2 {[%clk 0:00:02]}  Bf4 {[%clk 0:00:16]} 59. Rf3 {[%clk 0:00:02]}  Qd2+ {[%clk 0:00:16]} 60. Rf2 {[%clk 0:00:01]}  Qe3 {[%clk 0:00:16]} 61. Kf1 {[%clk 0:00:01]}  Qc1+ {[%clk 0:00:14]} 62. Kg2 {[%clk 0:00:02]}  Qxb1 {[%clk 0:00:14]} 63. g7 {[%clk 0:00:03]}  Qb8 {[%clk 0:00:14]} 64. h6 {[%clk 0:00:02]}  Qg8 {[%clk 0:00:13]} 0-1


[Site "https://www.chess.com"]